fUSD/lending_fUSD_20260201
["ID","MTS","AMOUNT","RATE_DAILY","PERIOD"]
[404222448,1769974637674,-150.0,0.0005017,30]
[404222449,1769974637730,-150.0,0.0005017,30]
[404222450,1769974637789,-500.0,0.00050205,120]
[404222451,1769974637852,-150.0,0.00050223,120]
[404222452,1769974637911,-150.0,0.00050252,30]
[404222453,1769974637969,-150.0,0.00050342,30]
[404222454,1769974638188,-150.0,0.00050365,30]
[404222455,1769974638247,-150.0,0.00050405,30]
[404222456,1769974638307,-203.442396,0.00050447,120]
[404222457,1769974638371,-150.0,0.00050453,30]
[404222458,1769974638428,-150.0,0.00050453,30]
[404222459,1769974638484,-1392.99609396,0.000505,120]
[404222460,1769974638542,-1424.68710169,0.000505,120]
[404222461,1769974638601,-150.0,0.00050558,30]
[404222462,1769974638661,-150.0,0.00050581,30]
[404222463,1769974638719,-150.0,0.00050581,30]
[404222464,1769974638775,-960.9638086,0.000506,120]
[404222465,1769974638831,-152.0,0.000506,120]
[404222466,1769974638888,-153.0,0.000506,120]
[404222467,1769974638949,-150.0,0.00050646,30]
[404222468,1769974639009,-150.0,0.00050711,30]
[404222469,1769974639070,-150.0,0.00050712,120]
[404222470,1769974639127,-176.26232049,0.00050729,30]
[404222471,1769974639188,-150.0,0.00050787,30]
[404222472,1769974639248,-150.0,0.00050787,30]
[404222473,1769974639311,-150.0,0.00050787,30]
[404222474,1769974639368,-321.3768656,0.000508,30]
[404222475,1769974639424,-1111.91854428,0.000508,120]
[404222476,1769974639481,-1103.0,0.00050825,30]
[404222477,1769974639537,-150.0,0.00050863,30]
[404222478,1769974639593,-812.71,0.0005088,120]
[404222479,1769974639651,-167.19694039,0.000509,120]
[404222480,1769974639709,-150.0,0.00050928,30]
[404222481,1769974639765,-150.0,0.00050993,30]
[404222482,1769974639822,-150.0,0.00050993,30]
[404222483,1769974639879,-220.84870176,0.00051,120]
[404222484,1769974639936,-252.65,0.00051,120]
[404222485,1769974639995,-2612.33976342,0.00051,120]
[404222486,1769974640054,-150.0,0.00051016,30]
[404222487,1769974640116,-406.12641847,0.0005109,120]
[404222488,1769974640177,-150.0,0.00051121,30]
[404222489,1769974640236,-150.0,0.00051121,30]
[404222490,1769974640293,-150.0,0.00051169,30]
[404222491,1769974640353,-178.2449217,0.000512,120]
[404222492,1769974640411,-153.0,0.000512,120]
[404222493,1769974640471,-150.0,0.00051209,30]
[404222494,1769974640529,-150.0,0.00051233,30]
[404222495,1769974640587,-299.67284756,0.00051234,120]
[404222496,1769974640644,-422.80073849,0.000513,120]
[404222497,1769974640702,-256.48780385,0.000513,120]
[404222498,1769974640760,-695.85100728,0.000513,120]
[404222499,1769974640818,-296.03441522,0.000513,120]
[404222500,1769974640875,-248.92529321,0.000513,120]
[404222501,1769974640933,-1072.44321785,0.000513,120]
[404222502,1769974640992,-152.0,0.000513,120]
[404222503,1769974641052,-150.0,0.00051322,30]
[404222504,1769974641112,-150.0,0.00051404,30]
[404222505,1769974641173,-150.0,0.00051404,30]
[404222506,1769974641234,-150.0,0.00051455,30]
[404222507,1769974641293,-150.0,0.00051455,30]
[404222508,1769974641352,-150.0,0.00051474,30]
[404222509,1769974641411,-150.0,0.0005149,30]
[404222510,1769974641470,-151.0,0.00051499,35]
[404222511,1769974641529,-204.24338911,0.00051499,35]
[404222512,1769974641586,-824.55202169,0.00051539,60]
[404222513,1769974641643,-442.34,0.00051571,120]
[404222514,1769974641704,-151.0,0.00051579,100]
[404222515,1769974641763,-250.0,0.00051579,100]
[404222516,1769974641820,-500.0,0.00051606,120]
[404222517,1769974641875,-150.0,0.00051627,30]
[404222518,1769974641933,-151.0,0.00051649,72]
[404222519,1769974642003,-250.0,0.00051649,72]
[404222520,1769974642063,-150.0,0.00051678,30]
[404222521,1769974642121,-150.0,0.00051678,30]
[404222522,1769974642180,-150.0,0.00051678,30]
[404222523,1769974642239,-150.0,0.00051772,30]
[404222524,1769974642297,-150.0,0.0005178,30]
[404222525,1769974642355,-150.0,0.00051789,30]
[404222526,1769974642414,-150.0,0.00051789,30]
[404222527,1769974642474,-151.0,0.00051799,115]
[404222528,1769974642534,-250.0,0.00051799,115]
[404222529,1769974642593,-150.0,0.00051815,30]
[404222530,1769974642652,-150.0,0.00051815,30]
[404222531,1769974642708,-500.0,0.00051816,60]
[404222532,1769974642768,-600.0,0.00051816,60]
[404222533,1769974642826,-500.0,0.00051816,60]
[404222534,1769974642885,-153.0,0.000519,120]
[404222535,1769974642944,-5000.0,0.000519,120]
[404222536,1769974643003,-150.0,0.00051933,30]
[404222537,1769974643061,-450.000099,0.00051954,90]
[404222538,1769974643122,-151.0,0.00051979,110]
[404222539,1769974643186,-250.0,0.00051979,110]
[404222540,1769974643250,-1075.12086322,0.0005198,110]
[404222541,1769974643315,-151.0,0.00051999,35]
[404222542,1769974643376,-151.0,0.00051999,40]
[404222543,1769974643438,-151.0,0.00051999,90]
[404222544,1769974643499,-250.0,0.00051999,35]
[404222545,1769974643558,-250.0,0.00051999,40]
[404222546,1769974643620,-250.0,0.00051999,90]
[404222547,1769974643684,-462.99709392,0.00052,120]
[404222548,1769974643747,-838.4437266,0.00052,120]
[404222549,1769974643962,-1655.34711658,0.00052,30]
[404222550,1769974644023,-810.23741864,0.00052,120]
[404222551,1769974644089,-258.52645134,0.00052,120]
[404222552,1769974644150,-150.0,0.00052053,30]
[404222553,1769974644211,-460.89077404,0.00052054,120]
[404222554,1769974644276,-150.0,0.00052085,30]
[404222555,1769974644337,-152.0,0.000521,120]
[404222556,1769974644398,-151.0,0.00052113,33]
[404222557,1769974644458,-267.46074303,0.00052113,33]
[404222558,1769974644518,-250.0,0.00052113,33]
[404222559,1769974644578,-150.0,0.00052124,30]
[404222560,1769974644639,-150.0,0.00052124,30]
[404222561,1769974644700,-150.0,0.00052124,30]
[404222562,1769974644763,-150.0,0.00052226,30]
[404222563,1769974644824,-150.0,0.00052226,30]
[404222564,1769974644884,-150.0,0.00052238,30]
[404222565,1769974644946,-151.0,0.00052259,61]
[404222566,1769974645009,-250.0,0.00052259,61]
[404222567,1769974645071,-355.41608117,0.00052259,61]
[404222568,1769974645134,-1786.99606274,0.0005226,61]
[404222569,1769974645196,-150.0,0.00052335,30]
[404222570,1769974645258,-3930.59933547,0.00052345,60]
[404222571,1769974645323,-600.0,0.00052364,60]
[404222572,1769974645384,-150.0,0.00052391,30]
[404222573,1769974645444,-1166.0948147,0.000524,120]
[404222574,1769974645503,-301.18603824,0.0005243,54]
[404222575,1769974645564,-150.0,0.0005244,120]
[404222576,1769974645625,-150.0,0.00052458,30]
[404222577,1769974645685,-150.0,0.00052458,30]
[404222578,1769974645746,-333.43,0.0005246,120]
[404222579,1769974645806,-150.37,0.0005246,120]
[404222580,1769974645865,-500.0,0.000525,30]
[404222581,1769974645930,-500.0,0.000525,60]
[404222582,1769974645990,-150.0,0.00052544,30]
[404222583,1769974646050,-150.0,0.00052569,30]
[404222584,1769974646109,-153.0,0.000526,120]
[404222585,1769974646172,-150.0,0.00052616,30]
[404222586,1769974646235,-600.0,0.00052629,76]
[404222587,1769974646299,-151.0,0.00052629,76]
[404222588,1769974646358,-293.84329418,0.00052629,76]
[404222589,1769974646416,-250.0,0.00052629,76]
[404222590,1769974646475,-250.0,0.00052629,76]
[404222591,1769974646537,-150.0,0.00052638,30]
[404222592,1769974646597,-150.0,0.00052638,30]
[404222593,1769974646656,-150.0,0.00052696,30]
[404222594,1769974646714,-150.0,0.00052746,30]
[404222595,1769974646772,-160.79335764,0.00052747,120]
[404222596,1769974646831,-150.0,0.00052792,30]
[404222597,1769974646891,-150.0,0.00052792,30]
[404222598,1769974646952,-256.10782199,0.000528,120]
[404222599,1769974647012,-1018.83543213,0.000528,30]
[404222600,1769974647072,-152.0,0.000528,120]
[404222601,1769974647133,-154.89725075,0.00052848,30]
[404222602,1769974647192,-150.0,0.00052849,30]
[404222603,1769974647253,-150.0,0.00052856,120]
[404222604,1769974647313,-150.0,0.00052897,30]
[404222605,1769974647372,-422.80073849,0.000529,120]
[404222606,1769974647432,-256.48780385,0.000529,120]
[404222607,1769974647492,-695.85100728,0.000529,120]
[404222608,1769974647552,-296.03441522,0.000529,120]
[404222609,1769974647614,-248.92529321,0.000529,120]
[404222610,1769974647673,-1072.44321785,0.000529,120]
[404222611,1769974647730,-677.75963403,0.000529,120]
[404222612,1769974647791,-500.0,0.00052912,60]
[404222613,1769974647852,-600.0,0.00052912,60]
[404222614,1769974647914,-500.0,0.00052912,60]
[404222615,1769974647974,-150.0,0.00052968,120]
[404222616,1769974648035,-151.0,0.00052985,34]
[404222617,1769974648095,-500.0,0.00052985,34]
[404222618,1769974648156,-500.0,0.00052985,34]
[404222619,1769974648216,-600.0,0.00052985,34]
[404222620,1769974648276,-160.0,0.00052985,34]
[404222621,1769974648336,-151.0,0.00052985,34]
[404222622,1769974648398,-500.0,0.00052985,34]
[404222623,1769974648457,-500.0,0.00052985,34]
[404222624,1769974648517,-201.93286099,0.00052985,34]
[404222625,1769974648580,-500.0,0.00052985,34]
[404222626,1769974648642,-151.0,0.00052985,34]
[404222627,1769974648703,-250.0,0.00052985,34]
[404222628,1769974648762,-201.93286099,0.00052985,34]
[404222629,1769974648822,-1377.42282659,0.00052985,34]
[404222630,1769974648882,-220.0,0.00052985,34]
[404222631,1769974648948,-500.0,0.00052985,34]
[404222632,1769974649022,-250.0,0.00052985,34]
[404222633,1769974649087,-250.0,0.00052985,34]
[404222634,1769974649155,-257.91778498,0.00052985,34]
[404222635,1769974649224,-695.39793187,0.00052985,34]
[404222636,1769974649290,-250.0,0.00052985,34]
[404222637,1769974649358,-250.0,0.00052985,34]
[404222638,1769974649425,-250.0,0.00052985,34]
[404222639,1769974649488,-500.0,0.00052985,34]
[404222640,1769974649559,-500.0,0.00052985,34]
[404222641,1769974649627,-201.93286099,0.00052985,34]
[404222642,1769974649695,-151.0,0.00052999,30]
[404222643,1769974649764,-500.0,0.00052999,30]
[404222644,1769974649827,-500.0,0.00052999,30]
[404222645,1769974649894,-600.0,0.00052999,30]
[404222646,1769974649964,-160.0,0.00052999,30]
[404222647,1769974650036,-151.0,0.00052999,30]
[404222648,1769974650106,-151.0,0.00052999,40]
[404222649,1769974650184,-500.0,0.00052999,40]
[404222650,1769974650256,-500.0,0.00052999,40]
[404222651,1769974650325,-600.0,0.00052999,40]
[404222652,1769974650391,-160.0,0.00052999,40]
[404222653,1769974650459,-151.0,0.00052999,40]
[404222654,1769974650522,-500.0,0.00052999,30]
[404222655,1769974650583,-500.0,0.00052999,40]
[404222656,1769974650649,-500.0,0.00052999,30]
[404222657,1769974650715,-187.78006525,0.00052999,30]
[404222658,1769974650778,-500.0,0.00052999,40]
[404222659,1769974650847,-194.72792766,0.00052999,40]
[404222660,1769974650913,-500.0,0.00052999,30]
[404222661,1769974650984,-500.0,0.00052999,40]
[404222662,1769974651054,-151.0,0.00052999,30]
[404222663,1769974651121,-250.0,0.00052999,30]
[404222664,1769974651187,-151.0,0.00052999,40]
[404222665,1769974651258,-187.78006525,0.00052999,30]
[404222666,1769974651325,-250.0,0.00052999,40]
[404222667,1769974651389,-1280.88388878,0.00052999,30]
[404222668,1769974651453,-194.72792766,0.00052999,40]
[404222669,1769974651518,-1328.27659266,0.00052999,40]
[404222670,1769974651583,-220.0,0.00052999,30]
[404222671,1769974651647,-500.0,0.00052999,30]
[404222672,1769974651709,-220.0,0.00052999,40]
[404222673,1769974651781,-500.0,0.00052999,40]
[404222674,1769974651845,-250.0,0.00052999,30]
[404222675,1769974651907,-250.0,0.00052999,40]
[404222676,1769974651972,-250.0,0.00052999,30]
[404222677,1769974652038,-250.0,0.00052999,40]
[404222678,1769974652103,-239.84119403,0.00052999,30]
[404222679,1769974652163,-248.71531821,0.00052999,40]
[404222680,1769974652229,-646.65982734,0.00052999,30]
[404222681,1769974652292,-250.0,0.00052999,30]
[404222682,1769974652354,-670.58624095,0.00052999,40]
[404222683,1769974652413,-250.0,0.00052999,40]
[404222684,1769974652475,-250.0,0.00052999,30]
[404222685,1769974652554,-250.0,0.00052999,40]
[404222686,1769974652623,-250.0,0.00052999,30]
[404222687,1769974652689,-250.0,0.00052999,40]
[404222688,1769974652757,-500.0,0.00052999,30]
[404222689,1769974652822,-500.0,0.00052999,40]
[404222690,1769974652887,-500.0,0.00052999,30]
[404222691,1769974652959,-500.0,0.00052999,40]
[404222692,1769974653031,-187.78006525,0.00052999,30]
[404222693,1769974653104,-194.72792766,0.00052999,40]
[404222694,1769974653174,-257.64224608,0.00053,120]
[404222695,1769974653245,-339.7679005,0.00053,120]
[404222696,1769974653316,-150.0,0.00053,40]
[404222697,1769974653393,-150.0,0.00053,40]
[404222698,1769974653470,-449.64705764,0.00053,120]
[404222699,1769974653550,-1515.40018308,0.00053,120]
[404222700,1769974653622,-207.87,0.00053,120]
[404222701,1769974653689,-150.0,0.00053,99]
[404222702,1769974653759,-150.0,0.00053002,30]
[404222703,1769974653831,-500.0,0.00053008,120]
[404222704,1769974653903,-150.0,0.00053015,30]
[404222705,1769974653978,-150.0,0.00053049,30]
[404222706,1769974654055,-150.0,0.00053049,30]
[404222707,1769974654121,-150.0,0.00053126,30]
[404222708,1769974654192,-150.0,0.00053126,30]
[404222709,1769974654269,-150.0,0.00053155,30]
[404222710,1769974654338,-150.0,0.00053179,30]
[404222711,1769974654409,-153.0,0.000532,120]
[404222712,1769974654475,-500.0,0.00053275,60]
[404222713,1769974654543,-500.0,0.00053275,60]
[404222714,1769974654612,-151.0,0.00053275,60]
[404222715,1769974655000,-600.0,0.00053275,60]
[404222716,1769974655076,-160.0,0.00053275,60]
[404222717,1769974655138,-151.0,0.00053275,60]
[404222718,1769974655199,-500.0,0.00053275,60]
[404222719,1769974655262,-500.0,0.00053275,60]
[404222720,1769974655325,-181.08010149,0.00053275,60]
[404222721,1769974655388,-500.0,0.00053275,60]
[404222722,1769974655448,-151.0,0.00053275,60]
[404222723,1769974655508,-250.0,0.00053275,60]
[404222724,1769974655568,-399.47383434,0.00053275,60]
[404222725,1769974655626,-181.08010149,0.00053275,60]
[404222726,1769974655685,-1235.18214925,0.00053275,60]
[404222727,1769974655744,-220.0,0.00053275,60]
[404222728,1769974655807,-500.0,0.00053275,60]
[404222729,1769974655869,-250.0,0.00053275,60]
[404222730,1769974655933,-250.0,0.00053275,60]
[404222731,1769974655995,-231.28369723,0.00053275,60]
[404222732,1769974656058,-623.58710448,0.00053275,60]
[404222733,1769974656121,-250.0,0.00053275,60]
[404222734,1769974656182,-250.0,0.00053275,60]
[404222735,1769974656243,-250.0,0.00053275,60]
[404222736,1769974656303,-500.0,0.00053275,60]
[404222737,1769974656364,-500.0,0.00053275,60]
[404222738,1769974656425,-181.08010149,0.00053275,60]
[404222739,1769974656485,-500.0,0.00053299,60]
[404222740,1769974656546,-151.0,0.00053299,60]
[404222741,1769974656607,-500.0,0.00053299,60]
[404222742,1769974656668,-600.0,0.00053299,60]
[404222743,1769974656729,-160.0,0.00053299,60]
[404222744,1769974656788,-151.0,0.00053299,60]
[404222745,1769974656849,-500.0,0.00053299,60]
[404222746,1769974656911,-174.61919141,0.00053299,60]
[404222747,1769974656973,-500.0,0.00053299,60]
[404222748,1769974657035,-500.0,0.00053299,60]
[404222749,1769974657096,-151.0,0.00053299,60]
[404222750,1769974657158,-250.0,0.00053299,60]
[404222751,1769974657223,-500.0,0.00053299,60]
[404222752,1769974657287,-174.61919141,0.00053299,60]
[404222753,1769974657349,-1191.11104075,0.00053299,60]
[404222754,1769974657407,-220.0,0.00053299,60]
[404222755,1769974657465,-500.0,0.00053299,60]
[404222756,1769974657522,-250.0,0.00053299,60]
[404222757,1769974657578,-250.0,0.00053299,60]
[404222758,1769974657635,-223.0315306,0.00053299,60]
[404222759,1769974657692,-601.3376128,0.00053299,60]
[404222760,1769974657749,-250.0,0.00053299,60]
[404222761,1769974657807,-250.0,0.00053299,60]
[404222762,1769974657863,-250.0,0.00053299,60]
[404222763,1769974657925,-500.0,0.00053299,60]
[404222764,1769974657988,-500.0,0.00053299,60]
[404222765,1769974658051,-174.61919141,0.00053299,60]
[404222766,1769974658114,-150.0,0.00053307,30]
[404222767,1769974658179,-500.0,0.00053312,34]
[404222768,1769974658243,-151.0,0.00053312,34]
[404222769,1769974658305,-500.0,0.00053312,34]
[404222770,1769974658365,-600.0,0.00053312,34]
[404222771,1769974658423,-160.0,0.00053312,34]
[404222772,1769974658481,-151.0,0.00053312,34]
[404222773,1769974658540,-275.7230702,0.00053312,34]
[404222774,1769974658602,-500.0,0.00053312,34]
[404222775,1769974658663,-168.3888056,0.00053312,34]
[404222776,1769974658722,-500.0,0.00053312,34]
[404222777,1769974658781,-168.3888056,0.00053312,34]
[404222778,1769974658841,-500.0,0.00053312,34]
[404222779,1769974658902,-151.0,0.00053312,34]
[404222780,1769974658964,-250.0,0.00053312,34]
[404222781,1769974659024,-500.0,0.00053312,34]
[404222782,1769974659086,-168.3888056,0.00053312,34]
[404222783,1769974659148,-1148.61238259,0.00053312,34]
[404222784,1769974659207,-220.0,0.00053312,34]
[404222785,1769974659264,-500.0,0.00053312,34]
[404222786,1769974659324,-250.0,0.00053312,34]
[404222787,1769974659379,-250.0,0.00053312,34]
[404222788,1769974659432,-215.0738,0.00053312,34]
[404222789,1769974659487,-250.0,0.00053312,34]
[404222790,1769974659546,-579.88197956,0.00053312,34]
[404222791,1769974659608,-557.5788265,0.00053312,34]
[404222792,1769974659670,-250.0,0.00053312,34]
[404222793,1769974659730,-250.0,0.00053312,34]
[404222794,1769974659788,-500.0,0.00053312,34]
[404222795,1769974659848,-500.0,0.00053312,34]
[404222796,1769974659908,-168.3888056,0.00053312,34]
[404222797,1769974659973,-159.9,0.000534,120]
[404222798,1769974660037,-150.0,0.000534,40]
[404222799,1769974660095,-239.85,0.000534,120]
[404222800,1769974660155,-253.0,0.000534,79]
[404222801,1769974660215,-500.0,0.00053459,30]
[404222802,1769974660273,-151.0,0.00053459,30]
[404222803,1769974660479,-500.0,0.00053459,30]
[404222804,1769974660542,-600.0,0.00053459,30]
[404222805,1769974660600,-160.0,0.00053459,30]
[404222806,1769974660657,-151.0,0.00053459,30]
[404222807,1769974660712,-465.38851332,0.00053459,30]
[404222808,1769974660768,-151.0,0.00053459,30]
[404222809,1769974660830,-500.0,0.00053459,30]
[404222810,1769974660887,-162.380719,0.00053459,30]
[404222811,1769974660950,-500.0,0.00053459,30]
[404222812,1769974661011,-162.380719,0.00053459,30]
[404222813,1769974661068,-500.0,0.00053459,30]
[404222814,1769974661124,-151.0,0.00053459,30]
[404222815,1769974661185,-250.0,0.00053459,30]
[404222816,1769974661246,-162.380719,0.00053459,30]
[404222817,1769974661305,-500.0,0.00053459,30]
[404222818,1769974661364,-1107.63007,0.00053459,30]
[404222819,1769974661423,-220.0,0.00053459,30]
[404222820,1769974661483,-500.0,0.00053459,30]
[404222821,1769974661543,-250.0,0.00053459,30]
[404222822,1769974661601,-250.0,0.00053459,30]
[404222823,1769974661661,-207.4,0.00053459,30]
[404222824,1769974661722,-250.0,0.00053459,30]
[404222825,1769974661781,-559.19188,0.00053459,30]
[404222826,1769974661840,-537.6845,0.00053459,30]
[404222827,1769974661902,-152.38963738,0.00053459,30]
[404222828,1769974661962,-250.0,0.00053459,30]
[404222829,1769974662020,-250.0,0.00053459,30]
[404222830,1769974662077,-500.0,0.00053459,30]
[404222831,1769974662135,-500.0,0.00053459,30]
[404222832,1769974662198,-162.380719,0.00053459,30]
[404222833,1769974662253,-600.0,0.0005346,60]
[404222834,1769974662313,-278.97569351,0.0005346,30]
[404222835,1769974662369,-277.48557304,0.0005346,30]
[404222836,1769974662425,-175.61913933,0.0005346,30]
[404222837,1769974662482,-195.42535132,0.0005346,30]
[404222838,1769974662540,-289.05610167,0.0005346,30]
[404222839,1769974662597,-185.72454995,0.0005346,30]
[404222840,1769974662654,-247.54832364,0.0005346,30]
[404222841,1769974662712,-255.81705829,0.0005346,30]
[404222842,1769974662768,-192.84932603,0.0005346,30]
[404222843,1769974662824,-217.37906494,0.0005346,30]
[404222844,1769974662877,-184.33048139,0.0005346,30]
[404222845,1769974662934,-159.19856482,0.0005346,30]
[404222846,1769974662992,-300.0,0.00053499,54]
[404222847,1769974663053,-500.0,0.00053499,54]
[404222848,1769974663112,-500.0,0.00053499,54]
[404222849,1769974663172,-151.0,0.00053499,54]
[404222850,1769974663234,-600.0,0.00053499,54]
[404222851,1769974663294,-500.0,0.00053499,54]
[404222852,1769974663355,-160.0,0.00053499,54]
[404222853,1769974663414,-151.0,0.00053499,54]
[404222854,1769974663475,-311.1,0.00053499,120]
[404222855,1769974663532,-590.18945618,0.00053499,120]
[404222856,1769974663590,-500.0,0.00053499,120]
[404222857,1769974663649,-151.0,0.00053499,120]
[404222858,1769974663707,-600.0,0.00053499,120]
[404222859,1769974663765,-500.0,0.00053499,120]
[404222860,1769974663824,-160.0,0.00053499,120]
[404222861,1769974663884,-620.0,0.00053499,54]
[404222862,1769974663945,-151.0,0.00053499,120]
[404222863,1769974664006,-642.94,0.00053499,120]
[404222864,1769974664070,-151.0,0.00053499,54]
[404222865,1769974664133,-151.0,0.00053499,120]
[404222866,1769974664197,-500.0,0.00053499,54]
[404222867,1769974664259,-500.0,0.00053499,120]
[404222868,1769974664319,-151.0,0.00053499,54]
[404222869,1769974664379,-500.0,0.00053499,54]
[404222870,1769974664436,-156.587,0.00053499,120]
[404222871,1769974664526,-500.0,0.00053499,120]
[404222872,1769974664584,-151.0,0.00053499,54]
[404222873,1769974664641,-156.587,0.00053499,120]
[404222874,1769974664697,-500.0,0.00053499,54]
[404222875,1769974664753,-500.0,0.00053499,120]
[404222876,1769974664810,-151.0,0.00053499,54]
[404222877,1769974664868,-250.0,0.00053499,54]
[404222878,1769974664926,-151.0,0.00053499,120]
[404222879,1769974664986,-151.0,0.00053499,54]
[404222880,1769974665047,-500.0,0.00053499,54]
[404222881,1769974665104,-250.0,0.00053499,120]
[404222882,1769974665163,-156.587,0.00053499,120]
[404222883,1769974665220,-500.0,0.00053499,120]
[404222884,1769974665280,-1030.0,0.00053499,54]
[404222885,1769974665338,-220.0,0.00053499,54]
[404222886,1769974665396,-1068.11,0.00053499,120]
[404222887,1769974665451,-220.0,0.00053499,120]
[404222888,1769974665508,-500.0,0.00053499,54]
[404222889,1769974665568,-500.0,0.00053499,120]
[404222890,1769974665626,-250.0,0.00053499,54]
[404222891,1769974665683,-250.0,0.00053499,120]
[404222892,1769974665741,-250.0,0.00053499,54]
[404222893,1769974665798,-250.0,0.00053499,54]
[404222894,1769974665855,-250.0,0.00053499,120]
[404222895,1769974665911,-200.0,0.00053499,54]
[404222896,1769974665969,-250.0,0.00053499,54]
[404222897,1769974666026,-520.0,0.00053499,54]
[404222898,1769974666084,-500.0,0.00053499,54]
[404222899,1769974666139,-250.0,0.00053499,120]
[404222900,1769974666194,-539.24,0.00053499,120]
[404222901,1769974666257,-518.5,0.00053499,120]
[404222902,1769974666311,-151.0,0.00053499,54]
[404222903,1769974666368,-250.0,0.00053499,120]
[404222904,1769974666423,-151.0,0.00053499,120]
[404222905,1769974666479,-231.38568608,0.00053499,54]
[404222906,1769974666537,-250.0,0.00053499,54]
[404222907,1769974666595,-250.0,0.00053499,120]
[404222908,1769974666654,-500.0,0.00053499,54]
[404222909,1769974666713,-500.0,0.00053499,120]
[404222910,1769974666772,-500.0,0.00053499,54]
[404222911,1769974666830,-500.0,0.00053499,120]
[404222912,1769974666886,-151.0,0.00053499,54]
[404222913,1769974666947,-156.587,0.00053499,120]
[404222914,1769974667010,-1016427.59666026,0.000535,120]
[404222915,1769974667070,-5000000.0,0.000535,120]
[404222916,1769974667130,-1103.0,0.000535,30]
[404222917,1769974667192,-1000.0,0.000535,120]
[404222918,1769974667252,-1000.0,0.000535,120]
[404222919,1769974667309,-1000.0,0.000535,120]
[404222920,1769974667368,-1000.0,0.000535,120]
[404222921,1769974667427,-1000.0,0.000535,120]
[404222922,1769974667485,-1000.0,0.000535,120]
[404222923,1769974667545,-1000.0,0.000535,120]
[404222924,1769974667604,-1094.46,0.000535,120]
[404222925,1769974667664,-152.0,0.000536,120]
[404222926,1769974667723,-4894.1074308,0.00053676,120]
[404222927,1769974667782,-1874.999999,0.0005368,120]
[404222928,1769974667841,-785.07236271,0.0005369,60]
[404222929,1769974667900,-970.18,0.00053737,120]
[404222930,1769974667958,-12213.48335297,0.0005379,120]
[404222931,1769974668021,-795.3754316,0.000538,120]
[404222932,1769974668081,-1000.0,0.000538,120]
[404222933,1769974668142,-805.0,0.000538,120]
[404222934,1769974668203,-7612.80013922,0.000538,120]
[404222935,1769974668268,-1000.0,0.000538,120]
[404222936,1769974668335,-878.9763736,0.00053834,120]
[404222937,1769974668397,-1444.34992772,0.000539,120]
[404222938,1769974668457,-75773.80841975,0.000539,120]
[404222939,1769974668516,-3838.78570352,0.000539,120]
[404222940,1769974668577,-153.0,0.000539,120]
[404222941,1769974668638,-178.18634644,0.0005399,120]
[404222942,1769974668696,-2982.4391109,0.00053995,120]
[404222943,1769974668755,-1000.0,0.00053999,120]
[404222944,1769974668816,-8140.21589768,0.00054,120]
[404222945,1769974668877,-300.0,0.00054,120]
[404222946,1769974668938,-3962.5848599,0.00054,120]
[404222947,1769974668996,-1304.25894627,0.00054,120]